bitfinex-derivatives/quotes_ETHF0:USTF0_20250530
["timestamp","ask_amount","ask_price","bid_price","bid_amount"]
[1748633956589,0.77585,2577.3,2577.2,2.03358]
[1748633956991,0.77591,2577.1,2577.0,3.2078]
[1748633957285,0.77594,2577.0,2576.9,0.00581294]
[1748633957485,1.39854,2577.0,2576.9,0.00581294]
[1748633957886,2.73224,2577.0,2576.9,0.00581294]
[1748633958184,2.73224,2577.0,2575.7,3.82843617]
[1748633958185,3.2078,2576.8,2575.7,3.82843617]
[1748633958383,3.98411,2575.8,2575.7,3.82843617]
[1748633959279,0.77637,2575.6,2575.5,0.00581294]
[1748633962486,0.77637,2575.6,2575.5,1.24011294]
[1748633962688,0.00581294,2576.0,2575.5,3.18111294]
[1748633962882,0.00581294,2576.0,2575.9,0.77628]
[1748633963085,3.2078,2576.7,2576.1,0.77622]
[1748633963394,3.2078,2576.7,2576.6,0.77607]
[1748633963691,0.77608,2576.6,2576.5,0.77608]
[1748633963988,0.77607,2576.6,2576.5,0.77608]
[1748633965098,0.00581294,2576.8,2576.7,0.77604]
[1748633966701,0.77607,2576.6,2576.5,1.2313]
[1748633967703,0.77606,2576.7,2576.5,1.2313]
[1748633967899,0.77606,2576.7,2576.6,0.77605]
[1748633968798,0.77604,2576.7,2576.6,0.77605]
[1748633968999,0.00581294,2576.8,2576.7,0.77604]
[1748633969201,3.2078,2577.1,2577.0,0.77595]
[1748633969399,0.77603,2576.8,2576.7,0.77602]
[1748633969607,0.77604,2576.7,2576.6,1.3274]
[1748633970000,3.28997,2577.0,2576.5,0.6639]
[1748633970202,3.2078,2576.8,2576.5,0.00581294]
[1748633970501,0.776,2576.9,2576.8,0.77599]
[1748633970898,0.77603,2576.8,2576.7,0.77601]
[1748633971905,0.77599,2576.9,2576.8,0.77598]
[1748633972299,0.96999,2576.9,2576.8,0.77598]
[1748633972603,0.77604,2576.8,2576.7,0.77602]
[1748633973309,0.194,2576.9,2576.8,0.77601]
[1748633973709,0.194,2576.9,2576.8,1.41631]
[1748633975908,0.96998,2576.9,2576.8,1.41631]
[1748633976611,0.194,2576.9,2576.8,1.41631]
[1748633976807,0.96998,2576.9,2576.8,1.41631]
[1748633977611,0.194,2576.9,2576.8,1.41631]
[1748633977813,0.96998,2576.9,2576.8,1.41631]
[1748633978907,0.194,2576.9,2576.8,1.41631]
[1748633979309,0.96998,2576.9,2576.8,1.41631]
[1748633984615,0.96998,2576.9,2576.8,2.63931]
[1748633984806,0.96998,2576.9,2576.8,1.8633]
[1748633985211,0.96998,2576.9,2576.8,2.63931]
[1748633985908,0.96998,2576.9,2576.8,1.8633]
[1748633986213,0.96998,2576.9,2576.8,2.6393]
[1748633986709,0.96998,2576.9,2576.8,1.8633]
[1748633987213,0.96998,2576.9,2576.8,2.6393]
[1748633988212,0.194,2576.9,2576.8,2.6393]
[1748633988408,0.96997,2576.9,2576.8,2.6393]
[1748633989215,0.00581294,2577.0,2576.9,0.77598]
[1748633989410,0.77591,2577.2,2577.1,0.77586]
[1748633989610,0.77591,2577.2,2577.1,2.11626]
[1748633990911,0.77598,2576.9,2576.8,4.5193]
[1748633991115,0.77598,2576.9,2576.8,6.55591]
[1748633991712,0.77596,2577.1,2577.0,0.77592]
[1748633992420,0.77598,2577.0,2576.9,0.77595]
[1748633992718,0.77595,2577.1,2577.0,0.77592]
[1748633993420,0.77595,2577.0,2576.9,2.03655]
[1748633994113,0.77594,2577.1,2577.0,0.77592]
[1748633994314,0.1939,2577.2,2577.1,0.77592]
[1748633994515,0.96979,2577.2,2577.1,0.77592]
[1748633995312,0.1939,2577.2,2577.1,0.77592]
[1748633996216,0.96979,2577.2,2577.1,0.77592]
[1748633996422,0.1939,2577.2,2577.1,0.77592]
[1748633997014,0.00581294,2577.4,2577.3,0.77585]
[1748633997222,0.78163294,2577.4,2577.3,4.67385]
[1748633997512,0.00581294,2577.4,2577.3,4.67385]
[1748633998315,0.00581294,2577.4,2577.2,1.3048]
[1748633998621,0.00581294,2577.4,2577.3,0.77586]
[1748633998622,0.78166294,2577.4,2577.3,0.77586]
[1748633998818,0.00581294,2577.4,2577.3,0.77586]
[1748633999013,0.78164294,2577.4,2577.3,0.77586]
[1748633999215,0.00581294,2577.4,2577.3,0.77586]
[1748634001918,0.78164294,2577.4,2577.3,0.77586]
[1748634002620,0.77589,2577.2,2577.1,2.08069]
[1748634003124,0.77588,2577.3,2577.2,0.77586]
[1748634004125,1.99231294,2577.4,2577.3,0.77586]
[1748634004330,1.35471294,2577.4,2577.3,0.77586]
[1748634004519,0.00581294,2577.4,2577.3,0.77586]
[1748634005525,0.78163294,2577.4,2577.3,0.77586]
[1748634005819,0.00581294,2577.4,2577.1,1.3048]
[1748634006025,0.77588,2577.3,2577.2,0.77586]
[1748634006523,0.77589,2577.2,2577.1,2.0807]
[1748634006722,0.77592,2577.1,2577.0,3.898]
[1748634007422,6.40825,2577.2,2576.8,3.82843617]
[1748634007628,0.77595,2577.0,2576.9,0.77598]
[1748634007919,0.77594,2577.1,2577.0,0.77595]
[1748634008125,0.7759,2577.2,2577.1,0.77589]
[1748634009421,1.93211294,2577.4,2577.1,0.77589]
[1748634009422,0.00581294,2577.4,2577.3,0.77586]
[1748634011412,0.77589,2577.2,2577.1,3.898]
[1748634013524,0.77589,2577.2,2577.1,4.67392]
[1748634014630,2.01278,2577.3,2577.2,0.77589]
[1748634014927,0.78166294,2577.4,2577.3,0.77586]
[1748634015830,0.77592,2577.2,2577.1,0.77589]
[1748634016126,0.7759,2577.3,2577.2,0.77586]
[1748634016322,1.93974,2577.2,2576.9,0.6615]
[1748634016631,0.77598,2577.0,2576.9,0.77596]
[1748634018029,0.77601,2576.9,2576.8,0.77599]
[1748634019533,0.77596,2577.1,2577.0,0.77592]
[1748634020332,3.9837,2577.3,2577.2,0.77589]
[1748634020529,3.2078,2577.3,2576.8,3.23962]
[1748634020830,0.77598,2577.0,2576.9,0.77596]
[1748634021024,4.5168,2577.3,2576.8,3.23964]
[1748634021524,0.77596,2577.1,2577.0,0.77591]
[1748634021724,0.77596,2577.1,2576.8,3.23964]
[1748634021725,6.45647,2577.3,2576.8,1.2996]
[1748634021926,0.77598,2577.0,2576.9,0.77597]
[1748634022527,0.77598,2576.9,2576.8,2.07559]
[1748634023330,0.77598,2577.0,2576.9,0.77595]
[1748634023935,0.77595,2577.1,2577.0,0.77592]
[1748634025638,0.77598,2577.0,2576.9,0.77597]
[1748634026034,0.77601,2576.8,2576.7,1.38632]
[1748634026540,0.77601,2576.8,2576.7,1.38634]
[1748634026739,0.77607,2576.6,2576.5,3.83424911]
[1748634026938,0.77607,2576.6,2576.5,4.61034911]
[1748634027533,0.77607,2576.6,2576.5,3.83424911]
[1748634027737,2.73037,2576.6,2576.5,3.83424911]
[1748634028135,0.7763,2575.9,2575.3,3.2078]
[1748634028336,3.98407,2576.0,2575.9,0.77629]
[1748634028532,3.2078,2576.3,2576.2,0.7762]
[1748634029538,2.1926,2576.3,2576.2,2.7549]
[1748634029742,0.00581294,2576.5,2576.4,0.77613]
[1748634030036,0.00581294,2576.5,2576.3,2.07975]
[1748634030236,0.78193294,2576.5,2576.3,1.3036]
[1748634030542,0.78193294,2576.5,2576.4,0.77613]
[1748634030934,0.77602,2576.8,2576.3,3.24395]
[1748634031134,0.77601,2576.9,2576.7,0.77602]
[1748634031335,0.77601,2576.9,2576.8,2.06591]
[1748634031634,0.77601,2576.9,2576.8,1.2899]
[1748634033139,0.77607,2576.7,2576.6,0.77606]
[1748634033338,0.77607,2576.7,2576.6,2.70996]
[1748634034346,0.77607,2576.7,2576.5,3.2078]
[1748634034347,1.94005,2576.8,2576.4,0.77612]
[1748634034639,1.94005,2576.8,2576.3,4.5016]
[1748634034844,0.77612,2576.5,2576.4,0.77611]
[1748634035041,0.77612,2576.5,2576.4,2.04891]
[1748634035248,0.77609,2576.6,2576.5,0.77608]
[1748634035645,0.7761,2576.5,2576.4,2.04892]
[1748634036149,0.7761,2576.6,2576.4,2.04892]
[1748634036446,0.7761,2576.6,2576.5,0.77611]
[1748634036648,0.7761,2576.6,2576.5,1.2728]
[1748634038650,0.77614,2576.4,2576.3,5.27773]
[1748634038951,0.77612,2576.5,2576.4,0.77611]
[1748634039151,0.77612,2576.5,2576.4,2.02981]
[1748634039353,0.77612,2576.5,2576.1,1.45262]
[1748634039550,0.7762,2576.2,2576.1,2.09712]
[1748634040450,0.7762,2576.2,2576.1,1.3209]
[1748634040650,0.7762,2576.2,2576.1,2.09713]
[1748634042146,0.7762,2576.2,2576.1,1.3209]
[1748634042356,0.77618,2576.3,2576.2,0.77616]
[1748634042555,0.77618,2576.3,2576.2,2.05686]
[1748634042752,0.77618,2576.3,2576.2,1.2807]
[1748634044852,0.77618,2576.3,2576.2,2.0569]
[1748634046655,0.77618,2576.3,2576.2,1.2807]
[1748634046856,0.77618,2576.3,2576.2,2.0569]
[1748634047354,0.77618,2576.3,2576.2,1.2807]
[1748634047652,0.77618,2576.3,2576.2,2.0569]
[1748634047955,0.7762,2576.2,2576.1,0.6445]
[1748634049250,0.7762,2576.2,2576.1,1.42073]
[1748634049453,0.7762,2576.2,2576.1,0.6445]
[1748634049855,0.7762,2576.2,2576.1,1.9218]
[1748634050352,0.7762,2576.2,2576.1,2.69803]
[1748634050656,0.7762,2576.2,2576.1,1.9218]
[1748634051156,0.7762,2576.2,2576.1,2.69803]
[1748634053858,0.7762,2576.2,2576.1,1.9218]
[1748634054364,0.7762,2576.2,2576.1,2.69803]
[1748634058757,0.7762,2576.3,2576.2,0.77615]
[1748634058955,0.7762,2576.3,2576.2,2.02005]
[1748634059763,0.7762,2576.3,2576.2,1.31383857]
[1748634060661,0.9702,2576.3,2576.2,1.31383857]
[1748634061059,0.9702,2576.3,2576.2,2.09003857]
[1748634062056,0.9702,2576.3,2576.2,1.31383857]
[1748634062258,9.178,2576.3,2576.2,8.57e-06]
[1748634062951,0.77623,2576.1,2576.0,1.51e-06]
[1748634063262,4.64823,2576.1,2576.0,1.51e-06]
[1748634063463,9.64823,2576.1,2576.0,1.51e-06]
[1748634063857,10.72671087,2576.1,2576.0,1.51e-06]
[1748634066860,6.85471087,2576.1,2576.0,1.51e-06]
[1748634067264,5.72671087,2576.1,2576.0,1.51e-06]
[1748634067661,1.85471087,2576.1,2576.0,1.51e-06]
[1748634068066,0.77623,2576.1,2576.0,0.77626151]
[1748634068265,0.77623,2576.1,2576.0,1.51e-06]
[1748634068764,0.77623,2576.1,2576.0,1.26660151]
[1748634069368,0.77623,2576.1,2576.0,1.51e-06]
[1748634069570,0.77623,2576.1,2576.0,1.26660151]
[1748634073968,0.77623,2576.1,2576.0,2.04286151]
[1748634075163,0.77623,2576.1,2576.0,1.26660151]
[1748634075581,0.77623,2576.1,2576.0,2.04286151]
[1748634075870,0.77623,2576.1,2576.0,1.26660151]
[1748634076368,0.77623,2576.1,2576.0,2.04286151]
[1748634076570,0.77622,2576.2,2576.1,0.7762]
[1748634076766,0.77622,2576.2,2576.1,1.395]
[1748634077072,0.77622,2576.2,2576.1,0.6188]
[1748634079071,0.77622,2576.2,2576.1,0.68873857]
[1748634079367,3.4018,2576.3,2576.1,0.68873857]
[1748634079569,4.17799,2576.3,2576.2,2.097]
[1748634080468,0.97019,2576.3,2576.2,2.097]
[1748634081667,0.194,2576.3,2576.2,2.097]
[1748634081865,0.194,2576.3,2576.2,5.3048]
[1748634083566,0.77607,2576.7,2576.6,0.77604]
[1748634083973,0.77608,2576.6,2576.5,2.02907]
[1748634084874,0.77608,2576.7,2576.6,0.77605]
[1748634088890,0.77602,2576.9,2576.8,0.77599]
[1748634089091,3.2078,2577.8,2577.7,0.77574]
[1748634089484,3.2078,2577.8,2577.5,0.77579]
[1748634089687,0.77579,2577.6,2577.5,2.71339]
[1748634090384,0.77579,2577.6,2577.5,1.9376]
[1748634090579,3.21361294,2577.8,2577.5,1.9376]
[1748634090580,0.77577,2577.7,2577.6,0.77576]
[1748634091388,0.77577,2577.6,2577.5,2.71338]
[1748634091895,0.77576,2577.7,2577.6,0.77575]
[1748634092193,3.98934294,2577.8,2577.7,0.77574]
[1748634093494,3.21361294,2577.8,2577.7,2.04024]
[1748634094090,0.00581294,2577.8,2577.7,2.04024]
[1748634094991,0.00581294,2577.8,2577.7,5.24804]
[1748634095196,0.78152294,2577.8,2577.7,4.4723]
[1748634095389,0.78152294,2577.8,2577.7,1.2645]
[1748634095696,0.78152294,2577.8,2577.7,2.04024]
[1748634095992,0.00581294,2577.8,2577.7,2.04024]
[1748634096195,0.78152294,2577.8,2577.7,2.04024]
[1748634096789,0.00581294,2577.8,2577.7,2.04024]
[1748634097198,0.78152294,2577.8,2577.7,2.04024]
[1748634097594,0.00581294,2577.8,2577.7,2.04024]
[1748634098493,0.78152294,2577.8,2577.7,2.04024]
[1748634099497,0.00581294,2577.8,2577.7,2.04024]
[1748634099694,0.78152294,2577.8,2577.7,2.04024]
[1748634102096,3.21361294,2577.8,2577.4,0.77581]
[1748634102400,0.77583,2577.4,2577.3,0.78166294]
[1748634102898,0.77583,2577.4,2577.3,2.08906294]
[1748634103400,0.77582,2577.6,2577.5,0.77577]
[1748634103996,1.93948,2577.6,2577.3,1.31321294]
[1748634104197,0.77583,2577.4,2577.3,2.08906294]
[1748634104505,0.77583,2577.4,2577.3,0.78166294]
[1748634105001,0.77583,2577.4,2577.3,2.00866294]
[1748634107006,0.77583,2577.4,2577.3,1.23281294]
[1748634107501,0.77583,2577.4,2577.3,1.30275151]
[1748634107904,0.77583,2577.4,2577.3,2.07861151]
[1748634108199,0.77583,2577.4,2577.3,1.30275151]
[1748634108403,0.77583,2577.4,2577.3,0.00581294]
[1748634108903,2.03573,2577.4,2577.3,0.00581294]
[1748634110700,2.03573,2577.4,2577.3,0.78167294]
[1748634111004,2.03573,2577.4,2577.3,0.00581294]
[1748634111709,0.77604,2576.7,2576.6,4.65405]
[1748634111905,0.77607,2576.6,2576.5,2.74708]
[1748634112201,3.31743,2576.8,2576.7,0.77604]
[1748634112506,0.77603,2576.8,2576.7,0.77604]
[1748634113605,0.96993,2576.8,2576.7,0.77604]
[1748634115406,0.77607,2576.7,2576.6,0.77606]
[1748634115603,0.77607,2576.6,2576.5,0.00581294]
[1748634115808,1.39087,2576.6,2576.5,0.00581294]
[1748634117306,0.77629,2575.9,2575.8,3.2078]
[1748634117706,0.77629,2575.9,2575.8,3.9841]
[1748634118007,0.77628,2576.0,2575.9,0.77626]
[1748634118802,0.77628,2576.0,2575.9,2.06686]
[1748634119508,0.77628,2576.0,2575.9,1.2906]
[1748634119709,0.77628,2576.0,2575.9,2.06689]
[1748634120406,0.77628,2576.0,2575.9,1.2906]
[1748634120608,0.77629,2575.9,2575.8,3.98412]
[1748634121116,0.77629,2575.9,2575.8,5.20382]
[1748634121406,0.00581294,2576.2,2575.8,4.4275]
[1748634121610,0.78204294,2576.2,2576.1,0.77623]
[1748634121909,0.77626,2576.1,2576.0,0.77624]
[1748634122306,0.00581294,2576.2,2575.8,4.4275]
[1748634122498,0.77632,2575.8,2575.7,0.62901294]
[1748634122904,0.77632,2575.8,2575.7,1.40536294]
[1748634123110,0.77632,2575.8,2575.7,0.62901294]
[1748634123310,0.77632,2575.8,2575.7,1.40536294]
[1748634124113,0.77628,2576.0,2575.9,0.77626]
[1748634124410,0.77629,2575.9,2575.8,2.0764]
[1748634124911,0.77628,2576.0,2575.9,0.77626]
[1748634125209,0.77629,2575.9,2575.8,2.07639]
[1748634125908,0.77628,2576.0,2575.9,0.77626]
[1748634126211,0.77626,2576.1,2576.0,0.77624]
[1748634126402,0.77628,2576.0,2575.9,0.77626]
[1748634126702,0.77628,2576.0,2575.9,2.08876]
[1748634128308,0.77628,2576.0,2575.9,1.3125]
[1748634128913,0.77628,2576.0,2575.9,2.08879]
[1748634130214,0.77628,2576.0,2575.9,1.3125]
[1748634130407,0.77625,2576.1,2576.0,0.77623]
[1748634130914,0.77626,2576.0,2575.9,2.08876]
[1748634131916,0.77626,2576.0,2575.9,1.3125]
[1748634132305,0.77629,2575.9,2575.8,3.2078]
[1748634132817,0.77629,2575.9,2575.8,4.4623]
[1748634133113,0.77626,2576.1,2576.0,0.77623]
[1748634135017,0.77629,2575.9,2575.8,2.05866]
[1748634135209,3.88272,2575.1,2573.4,3.2078]
[1748634135413,3.98458,2574.3,2574.2,0.7768]
[1748634135718,0.7768,2574.2,2574.1,1.2867]
[1748634136220,3.2078,2574.3,2574.1,1.2867]
[1748634136419,3.98459,2574.3,2574.1,1.2867]
[1748634136720,0.77677,2574.3,2574.1,1.2867]
[1748634137413,0.7768,2574.2,2574.1,1.2867]
[1748634138124,0.7768,2574.2,2574.1,5.1697]
[1748634139417,3.21362434,2574.4,2574.1,5.1697]
[1748634139623,0.77677,2574.3,2574.2,1.3319]
[1748634141817,0.7768,2574.2,2574.1,8.57e-06]
[1748634142129,2.3118,2574.2,2574.1,8.57e-06]
[1748634143222,0.77686,2574.0,2573.9,2.91e-06]
[1748634143525,3.98466,2574.0,2573.9,2.91e-06]
[1748634145021,4.17886,2574.0,2573.9,2.91e-06]
[1748634150825,4.17886,2574.0,2573.9,1.23470291]
[1748634151624,0.97106,2574.0,2573.9,1.86640291]
[1748634151818,0.1942,2574.0,2573.9,2.64329291]
[1748634152018,0.00582434,2574.4,2574.3,0.77677]
[1748634152219,0.00582434,2574.4,2574.3,4.83177]
[1748634152721,0.00582434,2574.4,2574.3,9.83177]
[1748634153129,3.2078,2575.0,2574.5,1.94178]
[1748634153328,3.2078,2575.0,2574.7,0.77664]
[1748634153626,0.77665,2574.8,2574.7,0.77664]
[1748634154726,0.77665,2574.7,2574.6,5.47205]
[1748634155528,0.77663,2574.8,2574.7,0.77662]
[1748634155729,0.77663,2574.8,2574.7,2.11172]
[1748634156021,0.194,2574.9,2574.7,1.3351]
[1748634156228,0.194,2574.9,2574.8,2.72532]
[1748634157329,0.97059,2574.9,2574.8,1.9487]
[1748634157530,0.97059,2574.9,2574.8,2.72532]
[1748634157731,0.194,2574.9,2574.8,2.72532]
[1748634158028,0.194,2574.9,2574.8,7.72532]
[1748634162436,0.97059,2574.9,2574.8,1.9487]
[1748634162932,0.97059,2574.9,2574.8,2.72532]
[1748634163328,0.194,2574.9,2574.8,2.72532]
[1748634164836,0.194,2574.9,2574.8,5.93312]
[1748634165238,3.2078,2575.6,2575.0,1.9414]
[1748634165529,3.2078,2575.6,2575.1,5.3483]
[1748634165737,0.77646,2575.4,2575.3,0.77645]
[1748634165928,0.77646,2575.4,2575.3,1.41315]
[1748634166130,0.77646,2575.4,2575.3,2.07475]
[1748634166331,0.77646,2575.4,2575.3,1.2983]
[1748634166736,0.77646,2575.4,2575.3,2.07477]
[1748634167438,0.77647,2575.3,2575.2,1.2943]
[1748634167642,0.77647,2575.3,2575.2,5.3483]
[1748634167938,0.77647,2575.3,2575.2,1.2943]
[1748634168142,0.7765,2575.2,2575.1,0.00582434]
[1748634171031,1.8762,2575.2,2575.1,0.00582434]
[1748634172535,6.8762,2575.2,2575.1,4.34e-06]
[1748634173534,1.8762,2575.2,2575.1,4.34e-06]
[1748634178842,0.7765,2575.2,2575.1,4.34e-06]
[1748634179745,0.7765,2575.2,2575.1,0.77653434]
[1748634180045,0.77649,2575.3,2575.2,0.77647]
[1748634180238,0.77649,2575.3,2575.2,1.3398]
[1748634180440,0.77649,2575.3,2575.2,1.40973857]
[1748634181235,3.2078,2575.4,2575.2,1.40973857]
[1748634181236,3.2078,2575.4,2575.3,0.77647]
[1748634181436,3.98424,2575.4,2575.3,4.78447]
[1748634181640,3.98424,2575.4,2575.3,4.008]
[1748634182436,3.98424,2575.4,2575.3,5.3478]
[1748634183148,3.98424,2575.4,2575.3,6.12427]
[1748634183636,0.77647,2575.3,2575.2,0.06993857]
[1748634183943,3.15527,2575.3,2575.2,0.06993857]
[1748634185545,0.7765,2575.2,2575.1,4.34e-06]
[1748634191349,0.7765,2575.2,2575.1,0.77653434]
[1748634191541,3.2078,2575.4,2575.1,4.34e-06]
[1748634191848,3.2078,2575.4,2575.3,0.77647]
[1748634192245,3.2078,2575.4,2575.3,2.09147]
[1748634192546,3.2078,2575.4,2575.3,2.16140857]
[1748634192755,0.77644,2575.4,2575.3,2.16140857]
[1748634192946,3.98424,2575.4,2575.3,2.83250857]
[1748634194552,3.2078,2575.4,2575.3,2.83250857]
[1748634197345,3.98424,2575.4,2575.3,2.83250857]
[1748634197550,3.2078,2575.4,2575.3,2.83250857]
[1748634197740,0.00582434,2575.6,2575.5,0.77641]
[1748634198342,0.00582434,2575.6,2575.5,2.07401]
[1748634198649,3.2078,2576.0,2575.9,0.77629]
[1748634199340,1.9402,2576.6,2575.9,0.77629]
[1748634199341,0.77619,2576.3,2576.2,0.7762]
[1748634199546,3.98399,2576.3,2576.2,0.7762]
[1748634200150,3.2078,2576.3,2576.2,0.7762]
[1748634200553,3.2078,2576.3,2576.2,4.7842]
[1748634201253,3.98397,2576.3,2576.2,4.7842]
[1748634201452,3.2078,2576.3,2576.2,4.7842]
[1748634201950,3.98397,2576.3,2576.2,4.7842]
[1748634202453,0.7762,2576.2,2576.1,5.3046]
[1748634202853,0.7762,2576.2,2576.1,1.2976]
[1748634203548,0.7762,2576.2,2576.1,2.07383]
[1748634204053,0.7762,2576.2,2576.1,1.2976]
[1748634204447,0.7762,2576.2,2576.1,2.07383]
[1748634205158,3.98398,2576.3,2576.2,0.7762]
[1748634205451,3.98398,2576.3,2576.2,2.0829]
[1748634205652,3.98398,2576.3,2576.2,1.3067]
[1748634206353,3.98398,2576.3,2576.2,2.0829]
[1748634206947,3.98398,2576.3,2576.2,1.3067]
[1748634207352,3.98398,2576.3,2576.2,2.0829]
[1748634207954,3.98398,2576.3,2576.2,1.3067]
[1748634208855,3.98398,2576.3,2576.2,2.0829]
[1748634209049,3.98398,2576.3,2576.2,1.3067]
[1748634209251,0.77618,2576.3,2576.2,1.3067]
[1748634209450,3.98398,2576.3,2576.2,1.3067]
[1748634209963,0.77618,2576.3,2576.2,2.0829]
[1748634210255,0.78196434,2576.5,2576.4,0.77614]
[1748634210655,0.00582434,2576.5,2576.4,0.77614]
[1748634210856,0.00582434,2576.5,2576.4,2.08654]
[1748634215862,0.00582434,2576.5,2576.4,2.15647857]
[1748634219958,3.2078,2577.0,2576.9,0.77599]
[1748634220266,3.2078,2577.0,2576.9,4.72699]
[1748634220459,3.98376,2577.0,2576.9,4.72699]
[1748634220661,3.98376,2577.0,2576.9,5.98589]
[1748634222468,3.2078,2577.0,2576.9,5.98589]
[1748634223064,3.98376,2577.0,2576.9,5.98589]
[1748634223565,3.2078,2577.0,2576.9,5.98589]
[1748634225166,3.98376,2577.0,2576.9,5.98589]
[1748634225669,3.2078,2577.0,2576.9,5.98589]
[1748634226771,3.98376,2577.0,2576.9,5.98589]
[1748634227171,3.2078,2577.0,2576.9,5.98589]
[1748634227372,3.98376,2577.0,2576.9,5.98589]
[1748634227764,0.77595,2577.1,2577.0,0.77593]
[1748634227960,0.77595,2577.1,2577.0,2.09853]
[1748634229465,0.78174434,2577.2,2577.1,0.77593]
[1748634230272,0.77593,2577.1,2577.0,2.09854]
[1748634232270,0.77593,2577.1,2577.0,1.3226]
[1748634232476,0.77602,2576.8,2576.7,0.00582434]
[1748634232677,0.77602,2576.8,2576.7,3.95582434]
[1748634233778,0.77602,2576.8,2576.7,4.73187434]
[1748634236480,0.77601,2576.9,2576.8,0.77599]
[1748634236672,0.77601,2576.9,2576.8,2.06459]
[1748634236976,0.77601,2576.9,2576.8,2.06462]
[1748634237177,0.77601,2576.9,2576.7,3.95582434]
[1748634237178,0.77602,2576.8,2576.7,3.95582434]
[1748634237377,0.77602,2576.8,2576.7,0.00582434]
[1748634238179,1.87472,2576.8,2576.7,0.00582434]
[1748634241877,0.6252,2576.9,2576.7,0.00582434]
[1748634242081,0.77602,2576.9,2576.8,4.66799]
[1748634242277,0.77602,2576.9,2576.8,5.98029]
[1748634242981,3.98378,2577.0,2576.9,0.77599]
[1748634243176,3.98378,2577.0,2576.9,2.08829]
[1748634244282,0.78174434,2577.2,2577.1,0.77593]
[1748634244489,0.00582434,2577.2,2577.1,0.77593]
[1748634245481,0.78172434,2577.2,2577.1,4.66793]
[1748634245783,0.78172434,2577.2,2577.1,3.892]
[1748634246983,0.78172434,2577.2,2577.1,4.66793]
[1748634248676,0.00582434,2577.2,2577.1,4.66793]
[1748634250685,3.2078,2577.6,2577.5,0.77581]
[1748634250985,3.2078,2577.6,2577.5,4.66781]
[1748634252986,3.98358,2577.6,2577.5,4.66781]
[1748634253182,3.2078,2577.6,2577.5,4.66781]
[1748634253877,3.2078,2577.6,2577.5,5.95451]
[1748634254180,3.98358,2577.6,2577.5,5.95451]
[1748634254386,3.2078,2577.6,2577.5,5.95451]
[1748634257782,0.00582434,2577.8,2577.7,0.77575]
[1748634260181,0.78154434,2577.8,2577.7,0.77575]
[1748634260383,0.77578,2577.7,2577.6,0.77577]
[1748634260583,3.98358,2577.7,2577.6,0.77577]
[1748634262094,3.98358,2577.7,2577.6,4.66677]
[1748634263890,3.98358,2577.7,2577.6,3.891]
[1748634264388,5.27628,2577.7,2577.6,3.891]
[1748634264589,0.77588,2577.4,2577.3,0.77585]
[1748634264787,3.98368,2577.4,2577.3,0.77585]
[1748634267592,3.98366,2577.4,2577.3,0.77587]
[1748634268398,0.77586,2577.4,2577.3,0.77587]
[1748634268796,3.98366,2577.4,2577.3,0.77587]
[1748634270399,0.77586,2577.4,2577.3,0.77587]
[1748634270700,3.2078,2577.4,2577.1,5.2225]
[1748634270895,0.7759,2577.2,2577.1,4.66692]
[1748634277196,3.2078,2577.4,2577.1,4.66692]
[1748634277502,0.77589,2577.3,2577.2,0.77587]
[1748634282000,0.77593,2577.1,2577.0,0.6752]
[1748634282205,3.98373,2577.1,2577.0,1.45116]
[1748634288301,3.98373,2577.1,2577.0,0.6752]
[1748634288502,3.98373,2577.1,2577.0,1.45116]
[1748634288801,3.98373,2577.1,2577.0,1.9227]
[1748634290201,3.98373,2577.1,2577.0,1.2475]
[1748634292113,3.98373,2577.1,2577.0,2.02346]
[1748634293513,3.98373,2577.1,2577.0,1.2475]
[1748634296510,3.2078,2577.1,2577.0,2.02346]
[1748634296808,0.77585,2577.4,2577.3,0.77584]
[1748634297116,0.92745,2577.4,2577.3,0.77584]
[1748634297609,0.92745,2577.4,2577.3,2.70334]
[1748634298014,0.92745,2577.4,2577.3,1.9275]
[1748634298815,0.92745,2577.4,2577.3,1.3013]
[1748634300813,0.77587,2577.3,2577.2,3.849]
[1748634301014,1.43847,2577.3,2577.2,4.6249]
[1748634301214,1.43847,2577.3,2577.2,3.849]
[1748634301418,0.77587,2577.3,2577.2,3.849]
[1748634301618,0.77587,2577.3,2577.2,5.8687]
[1748634302416,0.77587,2577.3,2577.2,5.0928]
[1748634302929,0.77587,2577.3,2577.2,5.8687]
[1748634303930,0.77587,2577.3,2577.2,5.0928]
[1748634304730,0.77587,2577.3,2577.2,5.8687]
[1748634304929,0.92746,2577.4,2577.3,0.77587]
[1748634305130,0.92746,2577.4,2577.3,2.12597]
[1748634305533,0.92746,2577.4,2577.3,1.3501]
[1748634306634,0.92746,2577.4,2577.3,2.12597]
[1748634306830,0.92746,2577.4,2577.3,1.3501]
[1748634307534,0.92746,2577.4,2577.3,2.12597]
[1748634307729,0.92746,2577.4,2577.3,1.3501]
[1748634308036,0.77587,2577.3,2577.2,0.06993857]
[1748634308237,0.77596,2577.0,2576.9,0.6215]
[1748634308431,3.98376,2577.0,2576.9,1.39749]
[1748634309137,3.98376,2577.0,2576.9,0.6215]
[1748634309336,3.98376,2577.0,2576.9,1.8586]
[1748634309632,3.98376,2577.0,2576.9,2.63459]
[1748634311428,3.98376,2577.0,2576.9,1.8586]
[1748634311835,3.98376,2577.0,2576.9,1.2371]
[1748634313635,3.98376,2577.0,2576.9,2.01309]
[1748634315333,1.9397,2577.3,2576.9,2.01309]
[1748634315334,0.77593,2577.2,2577.1,0.7759]
[1748634315537,0.77593,2577.1,2577.0,2.08634]
[1748634316034,0.77592,2577.2,2577.1,0.7759]
[1748634316937,3.2078,2577.3,2577.2,0.7759]